fUSD/lending_fUSD_20240516
["ID","MTS","AMOUNT","RATE_DAILY","PERIOD"]
[327120516,1715842255223,-500.0,0.00011791,2]
[327120517,1715842255232,-500.0,0.00011791,2]
[327120518,1715842255242,-569.11,0.00011791,2]
[327120519,1715842255252,-1735.53,0.00011791,2]
[327120520,1715842255262,-289.20344612,0.00011791,2]
[327120521,1715842255272,-500.0,0.00011791,2]
[327120522,1715842255283,-157.969192,0.00011791,2]
[327120523,1715842255292,-792.0,0.00011791,2]
[327120524,1715842255302,-541.64,0.00011791,2]
[327120525,1715842255312,-1061.58,0.00011791,2]
[327120526,1715842255322,-832.43,0.00011791,2]
[327120527,1715842255332,-151.0,0.00011791,2]
[327120528,1715842255341,-500.0,0.00011791,2]
[327120529,1715842255351,-151.0,0.00011791,2]
[327120530,1715842255361,-151.0,0.00011791,2]
[327120531,1715842255371,-500.0,0.00011791,2]
[327120532,1715842255380,-805.67,0.00011791,2]
[327120533,1715842255389,-500.0,0.00011791,2]
[327120534,1715842255400,-151.0,0.00011791,2]
[327120535,1715842255409,-1117.59,0.00011791,2]
[327120536,1715842255419,-507.00464799,0.00011791,2]
[327120537,1715842255428,-500.0,0.00011791,2]
[327120538,1715842255438,-500.0,0.00011791,2]
[327120539,1715842255448,-6250.73,0.00011791,2]
[327120540,1715842255458,-500.0,0.00011791,2]
[327120541,1715842255467,-500.0,0.00011791,2]
[327120542,1715842255476,-577.34,0.00011791,2]
[327120543,1715842255486,-500.0,0.00011791,2]
[327120544,1715842255495,-500.0,0.00011791,2]
[327120545,1715842255505,-500.0,0.00011791,2]
[327120546,1715842255514,-860.480533,0.00011791,2]
[327120547,1715842255523,-500.0,0.00011791,2]
[327120548,1715842255532,-843.7,0.00011791,2]
[327120549,1715842255541,-901.82,0.00011791,2]
[327120550,1715842255551,-5042.22,0.00011791,2]
[327120551,1715842255560,-500.0,0.00011791,2]
[327120552,1715842255570,-860.480533,0.00011791,2]
[327120553,1715842255579,-151.0,0.00011791,2]
[327120554,1715842255589,-500.0,0.00011791,2]
[327120555,1715842255598,-348.044403,0.00011791,2]
[327120556,1715842255608,-500.0,0.00011791,2]
[327120557,1715842255618,-500.0,0.00011791,2]
[327120558,1715842255627,-348.044403,0.00011791,2]
[327120559,1715842255636,-921.22,0.00011791,2]
[327120560,1715842255644,-500.0,0.00011791,2]
[327120561,1715842255654,-644.0794864,0.00011791,2]
[327120562,1715842255663,-500.0,0.00011791,2]
[327120563,1715842255673,-1481.26,0.00011791,2]
[327120564,1715842255682,-961.32,0.00011791,2]
[327120565,1715842255691,-500.0,0.00011791,2]
[327120566,1715842255701,-1146.433638,0.00011791,2]
[327120567,1715842255710,-893.15,0.00011791,2]
[327120568,1715842255719,-151.0,0.00011791,2]
[327120569,1715842255728,-616.96,0.00011791,2]
[327120570,1715842255738,-1146.433638,0.00011791,2]
[327120571,1715842255747,-500.0,0.00011791,2]
[327120572,1715842255757,-293.84644,0.00011791,2]
[327120573,1715842255766,-600.46,0.00011791,2]
[327120574,1715842255775,-151.0,0.00011791,2]
[327120575,1715842255784,-500.0,0.00011791,2]
[327120576,1715842255794,-500.0,0.00011791,2]
[327120577,1715842255804,-1559.25,0.00011791,2]
[327120578,1715842255814,-508.87634809,0.00011791,2]
[327120579,1715842255825,-500.0,0.00011791,2]
[327120580,1715842255834,-500.0,0.00011791,2]
[327120581,1715842255844,-206.98489085,0.00011791,2]
[327120582,1715842255858,-500.0,0.00011791,2]
[327120583,1715842255867,-1309.08,0.00011791,2]
[327120584,1715842255876,-151.0,0.00011791,2]
[327120585,1715842255885,-500.0,0.00011791,2]
[327120586,1715842255897,-557.14,0.00011791,2]
[327120587,1715842255906,-3205.88,0.00011791,2]
[327120588,1715842255916,-995.62,0.00011791,2]
[327120589,1715842255926,-151.0,0.00011791,2]
[327120590,1715842255935,-151.0,0.00011791,2]
[327120591,1715842255946,-500.0,0.00011791,2]
[327120592,1715842255956,-500.0,0.00011791,2]
[327120593,1715842255966,-634.62,0.00011791,2]
[327120594,1715842255975,-500.0,0.00011791,2]
[327120595,1715842255985,-2199.6,0.00011791,2]
[327120596,1715842255996,-151.0,0.00011791,2]
[327120597,1715842256008,-518.58809111,0.00011791,2]
[327120598,1715842256019,-500.0,0.00011791,2]
[327120599,1715842256030,-3060.81,0.00011791,2]
[327120600,1715842256039,-500.0,0.00011791,2]
[327120601,1715842256049,-500.0,0.00011791,2]
[327120602,1715842256058,-500.0,0.00011791,2]
[327120603,1715842256067,-500.0,0.00011791,2]
[327120604,1715842256077,-1852.87,0.00011791,2]
[327120605,1715842256275,-1728.51,0.00011791,2]
[327120606,1715842256285,-618.93875623,0.00011791,2]
[327120607,1715842256295,-749.59,0.00011791,2]
[327120608,1715842256305,-500.0,0.00011791,2]
[327120609,1715842256315,-500.0,0.00011791,2]
[327120610,1715842256325,-500.0,0.00011791,2]
[327120611,1715842256334,-181.665127,0.00011791,2]
[327120612,1715842256344,-151.0,0.00011791,2]
[327120613,1715842256353,-151.0,0.00011791,2]
[327120614,1715842256363,-500.0,0.00011791,2]
[327120615,1715842256373,-181.665127,0.00011791,2]
[327120616,1715842256382,-1323.61,0.00011791,2]
[327120617,1715842256392,-595.54,0.00011791,2]
[327120618,1715842256402,-1376.13,0.00011791,2]
[327120619,1715842256412,-500.0,0.00011791,2]
[327120620,1715842256422,-626.45,0.00011791,2]
[327120621,1715842256431,-151.0,0.00011791,2]
[327120622,1715842256440,-1329.46,0.00011791,2]
[327120623,1715842256450,-571.02451018,0.00011791,2]
[327120624,1715842256459,-229.557741,0.00011791,2]
[327120625,1715842256470,-500.0,0.00011791,2]
[327120626,1715842256480,-707.57,0.00011791,2]
[327120627,1715842256491,-500.0,0.00011791,2]
[327120628,1715842256500,-151.0,0.00011791,2]
[327120629,1715842256511,-229.557741,0.00011791,2]
[327120630,1715842256521,-1034.62,0.00011791,2]
[327120631,1715842256531,-151.0,0.00011791,2]
[327120632,1715842256540,-500.0,0.00011791,2]
[327120633,1715842256551,-500.0,0.00011791,2]
[327120634,1715842256561,-1024.64,0.00011791,2]
[327120635,1715842256571,-500.0,0.00011791,2]
[327120636,1715842256580,-500.0,0.00011791,2]
[327120637,1715842256590,-500.0,0.00011791,2]
[327120638,1715842256602,-805.76,0.00011791,2]
[327120639,1715842256611,-500.0,0.00011791,2]
[327120640,1715842256621,-151.0,0.00011791,2]
[327120641,1715842256632,-1346.55,0.00011791,2]
[327120642,1715842256642,-500.0,0.00011791,2]
[327120643,1715842256651,-591.07,0.00011791,2]
[327120644,1715842256660,-151.0,0.00011791,2]
[327120645,1715842256669,-500.0,0.00011791,2]
[327120646,1715842256678,-151.0,0.00011791,2]
[327120647,1715842256687,-650.26,0.00011791,2]
[327120648,1715842256696,-607.95,0.00011791,2]
[327120649,1715842256705,-500.0,0.00011791,2]
[327120650,1715842256715,-500.0,0.00011791,2]
[327120651,1715842256724,-500.0,0.00011791,2]
[327120652,1715842256733,-500.0,0.00011791,2]
[327120653,1715842256742,-275.383302,0.00011791,2]
[327120654,1715842256752,-500.0,0.00011791,2]
[327120655,1715842256761,-869.94,0.00011791,2]
[327120656,1715842256770,-151.0,0.00011792,2]
[327120657,1715842256779,-151.854711,0.00011792,2]
[327120658,1715842256788,-266.449622,0.00011792,2]
[327120659,1715842256797,-266.449622,0.00011792,2]
[327120660,1715842256807,-151.0,0.00011792,2]
[327120661,1715842256816,-151.0,0.00011792,2]
[327120662,1715842256825,-473.889368,0.00011792,2]
[327120663,1715842256834,-151.0,0.00011792,2]
[327120664,1715842256844,-190.778457,0.00011792,2]
[327120665,1715842256857,-151.0,0.00011792,2]
[327120666,1715842256866,-473.889368,0.00011792,2]
[327120667,1715842256875,-190.778457,0.00011792,2]
[327120668,1715842256884,-151.0,0.00011792,2]
[327120669,1715842256895,-151.0,0.00011792,2]
[327120670,1715842256904,-151.0,0.00011792,2]
[327120671,1715842256914,-151.0,0.00011792,2]
[327120672,1715842256924,-151.0,0.00011792,2]
[327120673,1715842256934,-1364.691949,0.00011792,2]
[327120674,1715842256944,-1364.691949,0.00011792,2]
[327120675,1715842256953,-151.0,0.00011792,2]
[327120676,1715842256962,-151.0,0.00011792,2]
[327120677,1715842256972,-169.394586,0.00011792,2]
[327120678,1715842256981,-1035.63,0.00011792,2]
[327120679,1715842256990,-1035.63,0.00011792,2]
[327120680,1715842256999,-1035.63,0.00011792,2]
[327120681,1715842257008,-169.394586,0.00011792,2]
[327120682,1715842257018,-2813.99,0.00011792,2]
[327120683,1715842257027,-2813.99,0.00011792,2]
[327120684,1715842257036,-2692.51,0.00011792,2]
[327120685,1715842257046,-2813.99,0.00011792,2]
[327120686,1715842257056,-2692.51,0.00011792,2]
[327120687,1715842257068,-2692.51,0.00011792,2]
[327120688,1715842257078,-151.0,0.00011792,2]
[327120689,1715842257088,-1772.99,0.00011792,2]
[327120690,1715842257098,-1772.99,0.00011792,2]
[327120691,1715842257109,-1772.99,0.00011792,2]
[327120692,1715842257121,-1680.05,0.00011792,2]
[327120693,1715842257131,-1680.05,0.00011792,2]
[327120694,1715842257141,-1680.05,0.00011792,2]
[327120695,1715842257151,-1251.2,0.00011792,2]
[327120696,1715842257161,-1251.2,0.00011792,2]
[327120697,1715842257172,-1251.2,0.00011792,2]
[327120698,1715842257182,-485.025833,0.00011792,2]
[327120699,1715842257192,-292.650751,0.00011792,2]
[327120700,1715842257203,-485.025833,0.00011792,2]
[327120701,1715842257213,-755.9,0.00011792,2]
[327120702,1715842257224,-755.9,0.00011792,2]
[327120703,1715842257234,-755.9,0.00011792,2]
[327120704,1715842257245,-292.650751,0.00011792,2]
[327120705,1715842257253,-500.0,0.00011792,2]
[327120706,1715842257263,-500.0,0.00011792,2]
[327120707,1715842257273,-500.0,0.00011792,2]
[327120708,1715842257282,-702.11,0.00011792,2]
[327120709,1715842257291,-702.11,0.00011792,2]
[327120710,1715842257300,-702.11,0.00011792,2]
[327120711,1715842257310,-863.76,0.00011792,2]
[327120712,1715842257319,-483.214084,0.00011792,2]
[327120713,1715842257328,-863.76,0.00011792,2]
[327120714,1715842257338,-863.76,0.00011792,2]
[327120715,1715842257348,-483.214084,0.00011792,2]
[327120716,1715842257358,-4664.4,0.00011792,2]
[327120717,1715842257367,-4664.4,0.00011792,2]
[327120718,1715842257376,-4664.4,0.00011792,2]
[327120719,1715842257385,-500.0,0.00011792,2]
[327120720,1715842257394,-500.0,0.00011792,2]
[327120721,1715842257405,-225.414592,0.00011792,2]
[327120722,1715842257414,-843.7,0.00011792,2]
[327120723,1715842257423,-901.82,0.00011792,2]
[327120724,1715842257432,-225.414592,0.00011792,2]
[327120725,1715842257442,-500.0,0.00011792,2]
[327120726,1715842257451,-500.0,0.00011792,2]
[327120727,1715842257460,-500.0,0.00011792,2]
[327120728,1715842257470,-1016.11,0.00011792,2]
[327120729,1715842257480,-1016.11,0.00011792,2]
[327120730,1715842257490,-1016.11,0.00011792,2]
[327120731,1715842257500,-500.0,0.00011792,2]
[327120732,1715842257510,-1481.26,0.00011792,2]
[327120733,1715842257519,-893.15,0.00011792,2]
[327120734,1715842257529,-600.46,0.00011792,2]
[327120735,1715842257538,-1450.22,0.00011792,2]
[327120736,1715842257547,-1450.22,0.00011792,2]
[327120737,1715842257557,-1450.22,0.00011792,2]
[327120738,1715842257566,-1309.08,0.00011792,2]
[327120739,1715842257576,-606.62,0.00011792,2]
[327120740,1715842257585,-3205.88,0.00011792,2]
[327120741,1715842257594,-606.62,0.00011792,2]
[327120742,1715842257603,-606.62,0.00011792,2]
[327120743,1715842257613,-952.35,0.00011792,2]
[327120744,1715842257622,-952.35,0.00011792,2]
[327120745,1715842257632,-952.35,0.00011792,2]
[327120746,1715842257641,-634.62,0.00011792,2]
[327120747,1715842257651,-610.25,0.00011792,2]
[327120748,1715842257660,-610.25,0.00011792,2]
[327120749,1715842257670,-610.25,0.00011792,2]
[327120750,1715842257680,-500.0,0.00011792,2]
[327120751,1715842257690,-3060.81,0.00011792,2]
[327120752,1715842257700,-731.62,0.00011792,2]
[327120753,1715842257710,-731.62,0.00011792,2]
[327120754,1715842257726,-731.62,0.00011792,2]
[327120755,1715842257744,-1852.87,0.00011792,2]
[327120756,1715842257753,-1728.51,0.00011792,2]
[327120757,1715842257763,-1609.59,0.00011792,2]
[327120758,1715842257772,-1609.59,0.00011792,2]
[327120759,1715842257781,-1609.59,0.00011792,2]
[327120760,1715842257791,-695.94,0.00011792,2]
[327120761,1715842257800,-695.94,0.00011792,2]
[327120762,1715842257810,-695.94,0.00011792,2]
[327120763,1715842257819,-1323.61,0.00011792,2]
[327120764,1715842257829,-595.54,0.00011792,2]
[327120765,1715842257839,-2362.92,0.00011792,2]
[327120766,1715842257853,-2362.92,0.00011792,2]
[327120767,1715842257863,-2362.92,0.00011792,2]
[327120768,1715842257873,-1034.62,0.00011792,2]
[327120769,1715842257883,-1023.9,0.00011792,2]
[327120770,1715842257892,-1023.9,0.00011792,2]
[327120771,1715842257902,-1023.9,0.00011792,2]
[327120772,1715842257912,-591.07,0.00011792,2]
[327120773,1715842257921,-500.0,0.00011792,2]
[327120774,1715842257930,-500.0,0.00011792,2]
[327120775,1715842257940,-500.0,0.00011792,2]
[327120776,1715842257949,-650.26,0.00011792,2]
[327120777,1715842257959,-1307.58,0.00011792,2]
[327120778,1715842257968,-1307.58,0.00011792,2]
[327120779,1715842257978,-1307.58,0.00011792,2]
[327120780,1715842257988,-607.95,0.00011792,2]
[327120781,1715842257997,-514.53696774,0.00011792,2]
[327120782,1715842258007,-500.0,0.00011792,2]
[327120783,1715842258017,-25889.35565322,0.00011793,2]
[327120784,1715842258026,-4275.54443929,0.00011793,2]
[327120785,1715842258036,-155.0,0.00011793,2]
[327120786,1715842258046,-166.01783688,0.00011793,2]
[327120787,1715842258056,-384.69644614,0.00011793,2]
[327120788,1715842258066,-155.30913379,0.00011793,2]
[327120789,1715842258082,-537.12628965,0.00011793,2]
[327120790,1715842258099,-15022.05763081,0.00011793,2]
[327120791,1715842258113,-500.0,0.00011793,2]
[327120792,1715842258124,-928.54,0.00011793,2]
[327120793,1715842258138,-500.0,0.00011793,2]
[327120794,1715842258153,-665.18,0.00011793,2]
[327120795,1715842258168,-500.0,0.00011793,2]
[327120796,1715842258183,-500.0,0.00011793,2]
[327120797,1715842258198,-627.34,0.00011793,2]
[327120798,1715842258212,-500.0,0.00011793,2]
[327120799,1715842258225,-500.0,0.00011793,2]
[327120800,1715842258240,-714.26,0.00011793,2]
[327120801,1715842258256,-858.52,0.00011793,2]
[327120802,1715842258269,-500.0,0.00011793,2]
[327120803,1715842258280,-825.4,0.00011793,2]
[327120804,1715842258293,-647.99,0.00011793,2]
[327120805,1715842258307,-896.52,0.00011793,2]
[327120806,1715842258321,-812.03,0.00011793,2]
[327120807,1715842258334,-500.0,0.00011793,2]
[327120808,1715842258350,-601.97,0.00011793,2]
[327120809,1715842258365,-727.45,0.00011793,2]
[327120810,1715842258377,-500.0,0.00011793,2]
[327120811,1715842258388,-1179.03,0.00011793,2]
[327120812,1715842258400,-500.0,0.00011793,2]
[327120813,1715842258413,-500.0,0.00011793,2]
[327120814,1715842258427,-500.0,0.00011793,2]
[327120815,1715842258438,-689.69,0.00011793,2]
[327120816,1715842258451,-1523.68,0.00011793,2]
[327120817,1715842258465,-151.0,0.00011793,2]
[327120818,1715842258476,-500.0,0.00011793,2]
[327120819,1715842258487,-500.0,0.00011793,2]
[327120820,1715842258498,-151.0,0.00011793,2]
[327120821,1715842258510,-151.0,0.00011793,2]
[327120822,1715842258521,-151.0,0.00011793,2]
[327120823,1715842258533,-500.0,0.00011793,2]
[327120824,1715842258545,-541.71,0.00011793,2]
[327120825,1715842258557,-448.17753071,0.00011793,2]
[327120826,1715842258569,-151.0,0.00011793,2]
[327120827,1715842258581,-747.18,0.00011793,2]
[327120828,1715842258594,-500.0,0.00011793,2]
[327120829,1715842258606,-286.078212,0.00011793,2]
[327120830,1715842258622,-151.0,0.00011793,2]
[327120831,1715842258635,-286.078212,0.00011793,2]
[327120832,1715842258649,-219.4734453,0.00011793,2]
[327120833,1715842258662,-500.0,0.00011793,2]
[327120834,1715842258677,-500.0,0.00011793,2]
[327120835,1715842258689,-500.0,0.00011793,2]
[327120836,1715842258702,-389.103363,0.00011793,2]
[327120837,1715842258714,-757.6,0.00011793,2]
[327120838,1715842258727,-389.103363,0.00011793,2]
[327120839,1715842258739,-500.0,0.00011793,2]
[327120840,1715842258751,-151.0,0.00011793,2]
[327120841,1715842258763,-571.25,0.00011793,2]
[327120842,1715842258776,-151.0,0.00011793,2]
[327120843,1715842258788,-500.0,0.00011793,2]
[327120844,1715842258800,-151.0,0.00011793,2]
[327120845,1715842258812,-500.0,0.00011793,2]
[327120846,1715842258824,-510.01,0.00011793,2]
[327120847,1715842258836,-500.0,0.00011793,2]
[327120848,1715842258849,-151.0,0.00011793,2]
[327120849,1715842258863,-500.0,0.00011793,2]
[327120850,1715842258875,-151.0,0.00011793,2]
[327120851,1715842258887,-151.0,0.00011793,2]
[327120852,1715842258903,-500.0,0.00011793,2]
[327120853,1715842258915,-269.19499491,0.00011793,2]
[327120854,1715842258927,-500.0,0.00011793,2]
[327120855,1715842258939,-500.0,0.00011793,2]
[327120856,1715842258951,-500.0,0.00011793,2]
[327120857,1715842258962,-151.0,0.00011793,2]
[327120858,1715842258973,-500.0,0.00011793,2]
[327120859,1715842258984,-500.0,0.00011793,2]
[327120860,1715842258995,-500.0,0.00011793,2]
[327120861,1715842259007,-500.0,0.00011793,2]
[327120862,1715842259019,-873.71,0.00011793,2]
[327120863,1715842259030,-500.0,0.00011793,2]
[327120864,1715842259041,-500.0,0.00011793,2]
[327120865,1715842259052,-500.0,0.00011793,2]
[327120866,1715842259064,-266.449622,0.00011793,2]
[327120867,1715842259075,-500.0,0.00011793,2]
[327120868,1715842259086,-500.0,0.00011793,2]
[327120869,1715842259097,-500.0,0.00011793,2]
[327120870,1715842259108,-500.0,0.00011793,2]
[327120871,1715842259120,-500.0,0.00011793,2]
[327120872,1715842259131,-266.449622,0.00011793,2]
[327120873,1715842259143,-500.0,0.00011793,2]
[327120874,1715842259155,-500.0,0.00011793,2]
[327120875,1715842259166,-500.0,0.00011793,2]
[327120876,1715842259177,-500.0,0.00011793,2]
[327120877,1715842259189,-500.0,0.00011793,2]
[327120878,1715842259201,-151.0,0.00011793,2]
[327120879,1715842259212,-500.0,0.00011793,2]
[327120880,1715842259223,-151.0,0.00011793,2]
[327120881,1715842259235,-500.0,0.00011793,2]
[327120882,1715842259245,-339.39663009,0.00011793,2]
[327120883,1715842259257,-500.0,0.00011793,2]
[327120884,1715842259268,-500.0,0.00011793,2]
[327120885,1715842259279,-257.55,0.00011793,2]
[327120886,1715842259291,-541.11,0.00011793,2]
[327120887,1715842259302,-500.0,0.00011793,2]
[327120888,1715842259313,-151.0,0.00011793,2]
[327120889,1715842259324,-500.0,0.00011793,2]
[327120890,1715842259335,-473.889368,0.00011793,2]
[327120891,1715842259347,-522.44,0.00011793,2]
[327120892,1715842259358,-500.0,0.00011793,2]
[327120893,1715842259368,-151.0,0.00011793,2]
[327120894,1715842259379,-190.778457,0.00011793,2]
[327120895,1715842259390,-500.0,0.00011793,2]
[327120896,1715842259402,-151.530654,0.00011793,2]
[327120897,1715842259413,-473.889368,0.00011793,2]
[327120898,1715842259425,-190.778457,0.00011793,2]
[327120899,1715842259437,-500.0,0.00011793,2]
[327120900,1715842259449,-151.0,0.00011793,2]
[327120901,1715842259459,-500.0,0.00011793,2]
[327120902,1715842259470,-151.0,0.00011793,2]
[327120903,1715842259481,-500.0,0.00011793,2]
[327120904,1715842259496,-500.0,0.00011793,2]
[327120905,1715842259507,-500.0,0.00011793,2]
[327120906,1715842259518,-518.67,0.00011793,2]
[327120907,1715842259530,-151.0,0.00011793,2]
[327120908,1715842259542,-151.0,0.00011793,2]
[327120909,1715842259554,-500.0,0.00011793,2]
[327120910,1715842259565,-500.0,0.00011793,2]
[327120911,1715842259576,-500.0,0.00011793,2]
[327120912,1715842259587,-266.206085,0.00011793,2]
[327120913,1715842259598,-1069.91,0.00011793,2]
[327120914,1715842259608,-500.0,0.00011793,2]
[327120915,1715842259620,-500.0,0.00011793,2]
[327120916,1715842259632,-500.0,0.00011793,2]
[327120917,1715842259644,-1364.691949,0.00011793,2]
[327120918,1715842259656,-1087.35,0.00011793,2]
[327120919,1715842259667,-500.0,0.00011793,2]
[327120920,1715842259678,-500.0,0.00011793,2]
[327120921,1715842259690,-1364.691949,0.00011793,2]
[327120922,1715842259702,-151.0,0.00011793,2]
[327120923,1715842259714,-501.52,0.00011793,2]
[327120924,1715842259726,-500.0,0.00011793,2]
[327120925,1715842259737,-500.0,0.00011793,2]
[327120926,1715842259749,-500.0,0.00011793,2]
[327120927,1715842259761,-151.0,0.00011793,2]
[327120928,1715842259772,-169.394586,0.00011793,2]
[327120929,1715842259783,-1035.63,0.00011793,2]
[327120930,1715842259794,-500.0,0.00011793,2]
[327120931,1715842259805,-500.0,0.00011793,2]
[327120932,1715842259815,-585.37,0.00011793,2]
[327120933,1715842259826,-8358.8,0.00011793,2]
[327120934,1715842259838,-169.394586,0.00011793,2]
[327120935,1715842259852,-715.96,0.00011793,2]
[327120936,1715842259863,-205.56618278,0.00011793,2]
[327120937,1715842259874,-500.0,0.00011793,2]
[327120938,1715842259884,-2813.99,0.00011793,2]
[327120939,1715842259895,-2692.51,0.00011793,2]
[327120940,1715842259906,-500.0,0.00011793,2]
[327120941,1715842259917,-500.0,0.00011793,2]
[327120942,1715842259928,-1109.83,0.00011793,2]
[327120943,1715842259938,-514.16793315,0.00011793,2]
[327120944,1715842259949,-2762.18,0.00011793,2]
[327120945,1715842259959,-151.0,0.00011793,2]
[327120946,1715842259970,-500.0,0.00011793,2]
[327120947,1715842259980,-500.0,0.00011793,2]
[327120948,1715842259991,-500.0,0.00011793,2]
[327120949,1715842260001,-500.0,0.00011793,2]
[327120950,1715842260013,-1772.99,0.00011793,2]
[327120951,1715842260023,-955.58,0.00011793,2]
[327120952,1715842260034,-639.18,0.00011793,2]
[327120953,1715842260045,-500.0,0.00011793,2]
[327120954,1715842260055,-500.0,0.00011793,2]
[327120955,1715842260066,-500.0,0.00011793,2]
[327120956,1715842260077,-500.0,0.00011793,2]
[327120957,1715842260088,-150.0,0.00011793,2]
[327120958,1715842260099,-646.06796736,0.00011793,2]
[327120959,1715842260109,-1680.83,0.00011793,2]
[327120960,1715842260119,-3935.02,0.00011793,2]
[327120961,1715842260130,-1680.05,0.00011793,2]
[327120962,1715842260140,-500.0,0.00011793,2]
[327120963,1715842260151,-500.0,0.00011793,2]
[327120964,1715842260162,-500.0,0.00011793,2]
[327120965,1715842260172,-500.0,0.00011793,2]
[327120966,1715842260183,-1251.2,0.00011793,2]
[327120967,1715842260195,-873.3,0.00011793,2]
[327120968,1715842260205,-485.025833,0.00011793,2]
[327120969,1715842260217,-842.55,0.00011793,2]
[327120970,1715842260228,-292.650751,0.00011793,2]
[327120971,1715842260239,-485.025833,0.00011793,2]
[327120972,1715842260250,-1164.01,0.00011793,2]
[327120973,1715842260262,-500.0,0.00011793,2]
[327120974,1715842260273,-726.88,0.00011793,2]
[327120975,1715842260285,-151.0,0.00011793,2]
[327120976,1715842260297,-500.0,0.00011793,2]
[327120977,1715842260310,-961.2,0.00011793,2]
[327120978,1715842260323,-151.0,0.00011793,2]
[327120979,1715842260335,-755.9,0.00011793,2]
[327120980,1715842260348,-292.650751,0.00011793,2]
[327120981,1715842260361,-500.0,0.00011793,2]
[327120982,1715842260374,-151.0,0.00011793,2]
[327120983,1715842260386,-299.854832,0.00011793,2]
[327120984,1715842260399,-157.969192,0.00011793,2]
[327120985,1715842260412,-500.0,0.00011793,2]
[327120986,1715842260424,-500.0,0.00011793,2]
[327120987,1715842260437,-157.969192,0.00011793,2]
[327120988,1715842260450,-569.11,0.00011793,2]
[327120989,1715842260463,-1735.53,0.00011793,2]
[327120990,1715842260476,-500.0,0.00011793,2]
[327120991,1715842260489,-157.969192,0.00011793,2]
[327120992,1715842260501,-157.969192,0.00011793,2]
[327120993,1715842260514,-1346.45,0.00011793,2]
[327120994,1715842260796,-500.0,0.00011793,2]
[327120995,1715842260819,-792.0,0.00011793,2]
[327120996,1715842260829,-541.64,0.00011793,2]
[327120997,1715842260839,-1061.58,0.00011793,2]
[327120998,1715842260850,-832.43,0.00011793,2]
[327120999,1715842260860,-151.0,0.00011793,2]
[327121000,1715842260869,-151.0,0.00011793,2]
[327121001,1715842260879,-702.11,0.00011793,2]
[327121002,1715842260888,-500.0,0.00011793,2]
[327121003,1715842260898,-151.0,0.00011793,2]
[327121004,1715842260909,-151.0,0.00011793,2]
[327121005,1715842260918,-483.214084,0.00011793,2]
[327121006,1715842260930,-863.76,0.00011793,2]
[327121007,1715842260939,-151.0,0.00011793,2]
[327121008,1715842260948,-500.0,0.00011793,2]
[327121009,1715842260958,-151.0,0.00011793,2]
[327121010,1715842260967,-805.67,0.00011793,2]
[327121011,1715842260976,-483.214084,0.00011793,2]
[327121012,1715842260984,-500.0,0.00011793,2]
[327121013,1715842260994,-155.418263,0.00011793,2]
[327121014,1715842261003,-1117.59,0.00011793,2]
[327121015,1715842261012,-2865.79,0.00011793,2]